{"text_format":"3","workbook":"xlsx","n_sheets":1,"sheets":["식료품 목록"],"not_rendered":{"images":1,"defined_names":3},"read":"whole","date_system":"1900"}

{"sheet":"식료품 목록","index":0,"n_rows":31,"n_cols":8,"rows_kept":31,"merged":[[1,1,1,2]]}
[null,"식료품 목록"]
[null,"날짜"]
[null,"완료","항목","범주","수량","가격","가격 합계","브랜드/메모"]
[null,null,"오렌지","농산물",null,null,{"$f":"IFERROR(SUM(GroceryList[수량]*GroceryList[가격]), \"\")","v":{"v":0,"d":"₩0.00"}}]
[null,null,"사과","농산물",null,null,{"$f":"IFERROR(SUM(GroceryList[수량]*GroceryList[가격]), \"\")","v":{"v":0,"d":"₩0.00"}}]
[null,null,"바나나","농산물",null,null,{"$f":"IFERROR(SUM(GroceryList[수량]*GroceryList[가격]), \"\")","v":{"v":0,"d":"₩0.00"}}]
[null,null,"상추","농산물",null,null,{"$f":"IFERROR(SUM(GroceryList[수량]*GroceryList[가격]), \"\")","v":{"v":0,"d":"₩0.00"}}]
[null,null,"토마토","농산물",null,null,{"$f":"IFERROR(SUM(GroceryList[수량]*GroceryList[가격]), \"\")","v":{"v":0,"d":"₩0.00"}},"  "]
[null,null,"우유 ","유제품",null,null,{"$f":"IFERROR(SUM(GroceryList[수량]*GroceryList[가격]), \"\")","v":{"v":0,"d":"₩0.00"}}]
[null,null,"치즈","유제품",null,null,{"$f":"IFERROR(SUM(GroceryList[수량]*GroceryList[가격]), \"\")","v":{"v":0,"d":"₩0.00"}}]
[null,null,"달걀","유제품",null,null,{"$f":"IFERROR(SUM(GroceryList[수량]*GroceryList[가격]), \"\")","v":{"v":0,"d":"₩0.00"}}]
[null,null,"코티지 치즈","유제품",null,null,{"$f":"IFERROR(SUM(GroceryList[수량]*GroceryList[가격]), \"\")","v":{"v":0,"d":"₩0.00"}}]
[null,null,"쇠고기","육류",null,null,{"$f":"IFERROR(SUM(GroceryList[수량]*GroceryList[가격]), \"\")","v":{"v":0,"d":"₩0.00"}}]
[null,null,"가금류","육류",null,null,{"$f":"IFERROR(SUM(GroceryList[수량]*GroceryList[가격]), \"\")","v":{"v":0,"d":"₩0.00"}}]
[null,null,"햄","육류",null,null,{"$f":"IFERROR(SUM(GroceryList[수량]*GroceryList[가격]), \"\")","v":{"v":0,"d":"₩0.00"}}]
[null,null,"주스","음료",null,null,{"$f":"IFERROR(SUM(GroceryList[수량]*GroceryList[가격]), \"\")","v":{"v":0,"d":"₩0.00"}}]
[null,null,"커피","음료",null,null,{"$f":"IFERROR(SUM(GroceryList[수량]*GroceryList[가격]), \"\")","v":{"v":0,"d":"₩0.00"}}]
[null,null,"차","음료",null,null,{"$f":"IFERROR(SUM(GroceryList[수량]*GroceryList[가격]), \"\")","v":{"v":0,"d":"₩0.00"}}]
[null,null,"수도","음료",null,null,{"$f":"IFERROR(SUM(GroceryList[수량]*GroceryList[가격]), \"\")","v":{"v":0,"d":"₩0.00"}}]
[null,null,"국수","파스타",null,null,{"$f":"IFERROR(SUM(GroceryList[수량]*GroceryList[가격]), \"\")","v":{"v":0,"d":"₩0.00"}}]
[null,null,"쌀","파스타",null,null,{"$f":"IFERROR(SUM(GroceryList[수량]*GroceryList[가격]), \"\")","v":{"v":0,"d":"₩0.00"}}]
[null,null,"통조림","수프",null,null,{"$f":"IFERROR(SUM(GroceryList[수량]*GroceryList[가격]), \"\")","v":{"v":0,"d":"₩0.00"}}]
[null,null,"분말","수프",null,null,{"$f":"IFERROR(SUM(GroceryList[수량]*GroceryList[가격]), \"\")","v":{"v":0,"d":"₩0.00"}}]
[null,null,"빵","빵류",null,null,{"$f":"IFERROR(SUM(GroceryList[수량]*GroceryList[가격]), \"\")","v":{"v":0,"d":"₩0.00"}}]
[null,null,"감자 칩","간식",null,null,{"$f":"IFERROR(SUM(GroceryList[수량]*GroceryList[가격]), \"\")","v":{"v":0,"d":"₩0.00"}}]
[null,null,"프레첼","간식",null,null,{"$f":"IFERROR(SUM(GroceryList[수량]*GroceryList[가격]), \"\")","v":{"v":0,"d":"₩0.00"}}]
[null,null,"아이스크림","간식",null,null,{"$f":"IFERROR(SUM(GroceryList[수량]*GroceryList[가격]), \"\")","v":{"v":0,"d":"₩0.00"}}]
[null,null,"쿠키","간식",null,null,{"$f":"IFERROR(SUM(GroceryList[수량]*GroceryList[가격]), \"\")","v":{"v":0,"d":"₩0.00"}}]
[null,null,"일회용 접시","소모품",null,null,{"$f":"IFERROR(SUM(GroceryList[수량]*GroceryList[가격]), \"\")","v":{"v":0,"d":"₩0.00"}}]
[null,null,"냅킨","소모품",null,null,{"$f":"IFERROR(SUM(GroceryList[수량]*GroceryList[가격]), \"\")","v":{"v":0,"d":"₩0.00"}}]
[{"$nulls":6},{"$f":"SUBTOTAL(109,GroceryList[가격 합계])","v":{"v":0,"d":"₩0.00"}}]